[Event "Turkish Cup 2024"]
[Site "Denizli"]
[Date "2024.07.31"]
[Round "2"]
[White "Konyar, Enver"]
[Black "Karaca, Yigit"]
[Result "1/2-1/2"]
[ECO "A01"]
[WhiteElo "1678"]
[BlackElo "1879"]
[Annotator "NA"]
[PlyCount "158"]
[EventDate "2024.08.01"]
[EventType "swiss"]
[EventCountry "TUR"]
[SourceTitle "playchess.com"]
[Source "ChessBase"]
[SourceQuality "1"]
[TimeControl "5400+30"]

1. b3 {[%emt 0:01:00]} e5 {[%emt 0:01:00]} 2. Bb2 {[%emt 0:00:30]} Nc6 {[%emt 0:00:00]} 3. c4 {[%emt 0:00:00]} Nge7 {[%emt 0:00:00]} 4. Nf3 {[%emt 0:02:00]} Ng6 {[%emt 0:09:30]} 5. e3 {[%emt 0:00:30]} Be7 {[%emt 0:02:30]} 6. d4 {[%emt 0:02:30]} exd4 {[%emt 0:00:30]} 7. Nxd4 {[%emt 0:00:30]} O-O {[%emt 0:04:30]} 8. Nxc6 {[%emt 0:01:30]} dxc6 {[%emt 0:00:30]} 9. Qxd8 {[%emt 0:05:30]} Rxd8 {[%emt 0:00:30]} 10. Be2 {[%emt 0:00:30]} Bf5 {[%emt 0:03:30]} 11. O-O {[%emt 0:04:30]} Bd3 {[%emt 0:21:30]} 12. Bxd3 {[%emt 0:03:30]} Rxd3 {[%emt 0:00:30]} 13. Nc3 {[%emt 0:02:30]} Rd2 {[%emt 0:13:30]} 14. Rab1 {[%emt 0:00:30]} Rad8 {[%emt 0:08:30]} 15. Ne4 {[%emt 0:03:30]} Rc2 {[%emt 0:03:30]} 16. Rfc1 {[%emt 0:00:30]} Rxc1+ {[%emt 0:03:30]} 17. Rxc1 {[%emt 0:00:30]} f5 {[%emt 0:01:30]} 18. Ng3 {[%emt 0:01:30]} Rd2 {[%emt 0:07:23]} 19. Bc3 {[%emt 0:00:30]} Rd3 {[%emt 0:00:41]} 20. h3 {[%emt 0:01:30]} Ba3 {[%emt 0:04:37]} 21. Rc2 {[%emt 0:02:30]} Bd6 {[%emt 0:01:10]} 22. Nf1 {[%emt 0:01:30]} f4 {[%emt 0:03:42]} 23. Bd2 {[%emt 0:00:30]} Be5 {[%emt 0:04:00]} 24. exf4 {[%emt 0:00:30]} Nxf4 {[%emt 0:00:50]} 25. Bxf4 {[%emt 0:01:30]} Bxf4 {[%emt 0:00:07]} 26. g3 {[%emt 0:00:00]} Bd6 {[%emt 0:01:09]} 27. Kg2 {[%emt 0:01:00]} Kf7 {[%emt 0:01:43]} 28. Rd2 {[%emt 0:01:30]} Rc3 {[%emt 0:01:11]} 29. Ne3 {[%emt 0:00:30]} g6 {[%emt 0:00:14]} 30. Ng4 {[%emt 0:03:30]} b5 {[%emt 0:01:59]} 31. Ne3 {[%emt 0:01:30]} a5 {[%emt 0:01:22]} 32. cxb5 {[%emt 0:11:30]} cxb5 {[%emt 0:00:30]} 33. Rd5 {[%emt 0:00:00]} Rc5 {[%emt 0:00:15]} 34. Rd4 {[%emt 0:03:00]} Ke6 {[%emt 0:00:49]} 35. Kf3 {[%emt 0:01:30]} Rc3 {[%emt 0:00:36]} 36. Ke4 {[%emt 0:01:30]} c5 {[%emt 0:00:29]} 37. Rd3 {[%emt 0:00:30]} Rc1 {[%emt 0:00:15]} 38. Rd1 {[%emt 0:00:30]} Rxd1 {[%emt 0:00:23]} 39. Nxd1 {[%emt 0:00:30]} Be5 {[%emt 0:00:08]} 40. f4 {[%emt 0:01:30]} Bd4 {[%emt 0:00:26]} 41. a4 {[%emt 0:00:30]} bxa4 {[%emt 0:01:03]} 42. bxa4 {[%emt 0:00:30]} Kd6 {[%emt 0:00:00]} 43. Ne3 {[%emt 0:06:30]} Bxe3 {[%emt 0:01:03]} 44. Kxe3 {[%emt 0:00:00]} Kd5 {[%emt 0:00:00]} 45. Kd3 {[%emt 0:05:00]} h5 {[%emt 0:00:38]} 46. g4 {[%emt 0:03:30]} h4 {[%emt 0:00:39]} 47. f5 {[%emt 0:12:06]} gxf5 {[%emt 0:00:30]} 48. gxf5 {[%emt 0:00:00]} Ke5 {[%emt 0:00:00]} 49. Kc4 {[%emt 0:00:47]} Kxf5 {[%emt 0:00:22]} 50. Kxc5 {[%emt 0:00:00]} Kf4 {[%emt 0:00:06]} 51. Kd4 {[%emt 0:00:09]} Kg3 {[%emt 0:00:30]} 52. Ke3 {[%emt 0:00:00]} Kxh3 {[%emt 0:00:08]} 53. Kf3 {[%emt 0:00:13]} Kh2 {[%emt 0:00:30]} 54. Kf2 {[%emt 0:00:00]} h3 {[%emt 0:00:00]} 55. Kf1 {[%emt 0:00:15]} Kg3 {[%emt 0:00:03]} 56. Kg1 {[%emt 0:00:30]} Kf4 {[%emt 0:00:20]} 57. Kh2 {[%emt 0:00:00]} Kg4 {[%emt 0:02:20]} 58. Kg1 {[%emt 0:01:00]} Kg5 {[%emt 0:00:53]} 59. Kh2 {[%emt 0:00:30]} Kg4 {[%emt 0:01:13]} 60. Kg1 {[%emt 0:00:30]} Kg3 {[%emt 0:00:08]} 61. Kh1 {[%emt 0:00:00]} Kh4 {[%emt 0:00:49]} 62. Kg1 {[%emt 0:00:00]} Kg3 {[%emt 0:01:04]} 63. Kh1 {[%emt 0:00:30]} Kf3 {[%emt 0:00:30]} 64. Kh2 {[%emt 0:00:00]} Kg4 {[%emt 0:00:06]} 65. Kg1 {[%emt 0:00:00]} Kg3 {[%emt 0:00:30]} 66. Kh1 {[%emt 0:00:30]} Kf3 {[%emt 0:00:00]} 67. Kh2 {[%emt 0:00:30]} Kg4 {[%emt 0:00:29]} 68. Kg1 {[%emt 0:00:00]} Kf4 {[%emt 0:00:00]} 69. Kh2 {[%emt 0:00:00]} Ke3 {[%emt 0:00:00]} 70. Kxh3 {[%emt 0:00:30]} Kd3 {[%emt 0:00:00]} 71. Kg3 {[%emt 0:00:00]} Kc2 {[%emt 0:00:00]} 72. Kf2 {[%emt 0:00:00]} Kb3 {[%emt 0:00:12]} 73. Ke2 {[%emt 0:00:30]} Kxa4 {[%emt 0:00:00]} 74. Kd2 {[%emt 0:00:30]} Ka3 {[%emt 0:00:00]} 75. Kc1 {[%emt 0:00:00]} Ka2 {[%emt 0:00:18]} 76. Kc2 {[%emt 0:00:00]} a4 {[%emt 0:00:00]} 77. Kc1 {[%emt 0:00:00]} a3 {[%emt 0:00:07]} 78. Kc2 {[%emt 0:00:00]} Ka1 {[%emt 0:00:30]} 79. Kc1 {[%emt 0:00:30]} a2 {[%emt 0:00:00]} 1/2-1/2

[Event "Turkish Cup 2024"]
[Site "Denizli"]
[Date "2024.07.31"]
[Round "2"]
[White "Dulger, Batuhan Ihsan"]
[Black "Kavri, Yusuf Eren"]
[Result "0-1"]
[ECO "B31"]
[WhiteElo "1667"]
[BlackElo "2090"]
[Annotator "ChessBase"]
[PlyCount "114"]
[EventDate "2024.08.01"]
[EventType "swiss"]
[EventCountry "TUR"]
[SourceTitle "playchess.com"]
[Source "ChessBase"]
[SourceQuality "1"]
[TimeControl "5400+30"]

1. e4 {[%emt 0:01:00]} c5 {[%emt 0:02:00]} 2. Nf3 {[%emt 0:00:00]} Nc6 {[%emt 0:00:00]} 3. Bb5 {[%emt 0:00:00]} g6 {[%emt 0:00:00]} 4. Bxc6 {[%emt 0:00:30]} dxc6 {[%emt 0:00:30]} 5. d3 {[%emt 0:00:30]} Bg7 {[%emt 0:00:30]} 6. h3 {[%emt 0:00:00]} Nf6 {[%emt 0:00:30]} 7. Nc3 {[%emt 0:00:00]} O-O {[%emt 0:02:30]} 8. Be3 {[%emt 0:00:30]} b6 {[%emt 0:01:30]} 9. a4 {[%emt 0:00:00]} a5 {[%emt 0:00:30]} 10. O-O {[%emt 0:00:00]} Ne8 {[%emt 0:05:30]} 11. Qd2 {[%emt 0:00:30]} Nc7 {[%emt 0:01:30]} 12. d4 {[%emt 0:15:30]} cxd4 {[%emt 0:01:30]} 13. Bxd4 {[%emt 0:00:00]} Ne6 {[%emt 0:06:30]} 14. Bxg7 {[%emt 0:01:00]} Kxg7 {[%emt 0:00:30]} 15. Qxd8 {[%emt 0:02:30]} Rxd8 {[%emt 0:00:00]} 16. Rfd1 {[%emt 0:00:30]} Ba6 {[%emt 0:00:00]} 17. g3 {[%emt 0:07:30]} f6 {[%emt 0:08:30]} 18. Kg2 {[%emt 0:00:00]} Nc5 {[%emt 0:00:00]} 19. Nd4 {[%emt 0:03:00]} Bb7 {[%emt 0:08:00]} 20. h4 {[%emt 0:04:30]} Kf7 {[%emt 0:01:30]} 21. Nf3 {[%emt 0:03:30]} e5 {[%emt 0:00:30]} 22. Kf1 {[%emt 0:03:30]} Na6 {[%emt 0:07:30]} 23. Rxd8 {[%emt 0:11:30]} Rxd8 {[%emt 0:00:30]} 24. Rd1 {[%emt 0:00:00]} Rxd1+ {[%emt 0:00:30]} 25. Nxd1 {[%emt 0:00:00]} Nb4 {[%emt 0:00:00]} 26. Ne3 {[%emt 0:02:30]} b5 {[%emt 0:03:00]} 27. Nd2 {[%emt 0:16:30]} bxa4 {[%emt 0:08:30]} 28. Ke1 {[%emt 0:00:30]} Ba6 {[%emt 0:02:30]} 29. Kd1 {[%emt 0:00:00]} Ke6 {[%emt 0:07:30]} 30. Ndc4 {[%emt 0:00:00]} Bxc4 {[%emt 0:04:30]} 31. Nxc4 {[%emt 0:00:30]} f5 {[%emt 0:00:30]} 32. f3 {[%emt 0:00:00]} Na6 {[%emt 0:02:30]} 33. Nxa5 {[%emt 0:00:00]} fxe4 {[%emt 0:00:30]} 34. fxe4 {[%emt 0:00:00]} Nc5 {[%emt 0:00:00]} 35. Ke2 {[%emt 0:10:00]} Nxe4 {[%emt 0:01:00]} 36. Kf3 {[%emt 0:00:30]} Nd6 {[%emt 0:00:30]} 37. Nxc6 {[%emt 0:17:23]} Nc4 {[%emt 0:00:30]} 38. Ke4 {[%emt 0:00:09]} Kd6 {[%emt 0:08:51]} 39. Nb4 {[%emt 0:03:09]} Nxb2 {[%emt 0:00:38]} 40. Na2 {[%emt 0:00:14]} a3 {[%emt 0:02:20]} 41. Nc3 {[%emt 0:00:09]} Ke6 {[%emt 0:00:00]} 42. g4 {[%emt 0:00:18]} h6 {[%emt 0:00:39]} 43. Na2 {[%emt 0:00:08]} Na4 {[%emt 0:07:39]} 44. Kd3 {[%emt 0:01:02]} Kd5 {[%emt 0:00:36]} 45. Nb4+ {[%emt 0:00:29]} Kc5 {[%emt 0:00:39]} 46. Na2 {[%emt 0:00:05]} Nb6 {[%emt 0:00:52]} 47. Ke4 {[%emt 0:02:39]} Nd7 {[%emt 0:02:01]} 48. Nc3 {[%emt 0:01:25]} Kb4 {[%emt 0:00:49]} 49. Na2+ {[%emt 0:00:36]} Kc4 {[%emt 0:00:03]} 50. g5 {[%emt 0:00:40]} h5 {[%emt 0:00:47]} 51. Ke3 {[%emt 0:00:06]} Nc5 {[%emt 0:00:16]} 52. Kd2 {[%emt 0:00:15]} Ne4+ {[%emt 0:00:54]} 53. Ke3 {[%emt 0:00:07]} Nc3 {[%emt 0:00:22]} 54. Nc1 {[%emt 0:00:38]} a2 {[%emt 0:00:10]} 55. Nxa2 {[%emt 0:00:00]} Nxa2 {[%emt 0:02:01]} 56. Ke4 {[%emt 0:00:00]} Nc3+ {[%emt 0:00:02]} 57. Kxe5 {[%emt 0:00:00]} Ne2 {[%emt 0:00:36]} 0-1

[Event "Turkish Cup 2024"]
[Site "Denizli"]
[Date "2024.07.31"]
[Round "2"]
[White "Tasdemir, Doruk"]
[Black "Tutuncu, Ali"]
[Result "0-1"]
[ECO "A26"]
[WhiteElo "1656"]
[BlackElo "2041"]
[Annotator "RC"]
[PlyCount "62"]
[EventDate "2024.08.01"]
[EventType "swiss"]
[EventCountry "TUR"]
[SourceTitle "playchess.com"]
[Source "ChessBase"]
[SourceQuality "1"]
[TimeControl "5400+30"]

1. c4 {[%emt 0:03:00]} e5 {[%emt 0:01:00]} 2. Nc3 {[%emt 0:00:30]} Nc6 {[%emt 0:00:00]} 3. g3 {[%emt 0:00:00]} g6 {[%emt 0:00:00]} 4. Bg2 {[%emt 0:00:00]} Bg7 {[%emt 0:00:00]} 5. d3 {[%emt 0:00:30]} d6 {[%emt 0:00:00]} 6. Nf3 {[%emt 0:00:30]} h6 {[%emt 0:00:00]} 7. Rb1 {[%emt 0:01:30]} f5 {[%emt 0:01:00]} 8. e4 {[%emt 0:05:30]} g5 {[%emt 0:00:30]} 9. b4 {[%emt 0:24:30]} f4 {[%emt 0:03:30]} 10. b5 {[%emt 0:11:30]} Nce7 {[%emt 0:00:30]} 11. h4 {[%emt 0:02:30]} g4 {[%emt 0:01:30]} 12. Nh2 {[%emt 0:02:30]} h5 {[%emt 0:00:30]} 13. Qb3 {[%emt 0:06:30]} Ng6 {[%emt 0:03:30]} 14. Nd5 {[%emt 0:06:30]} Nf6 {[%emt 0:03:30]} 15. Qc2 {[%emt 0:03:30]} O-O {[%emt 0:01:30]} 16. O-O {[%emt 0:01:30]} Nxd5 {[%emt 0:01:30]} 17. cxd5 {[%emt 0:02:30]} f3 {[%emt 0:02:30]} 18. Bh1 {[%emt 0:01:30]} Nxh4 {[%emt 0:00:00]} 19. Re1 {[%emt 0:02:30]} Ng6 {[%emt 0:00:00]} 20. Nf1 {[%emt 0:00:30]} h4 {[%emt 0:01:30]} 21. Be3 {[%emt 0:00:30]} Bf6 {[%emt 0:09:30]} 22. Rbc1 {[%emt 0:01:30]} Rf7 {[%emt 0:00:30]} 23. Qd2 {[%emt 0:01:30]} Rh7 {[%emt 0:00:30]} 24. Rc2 {[%emt 0:00:30]} hxg3 {[%emt 0:10:30]} 25. fxg3 {[%emt 0:01:30]} Nf4 {[%emt 0:01:30]} 26. gxf4 {[%emt 0:02:18]} exf4 {[%emt 0:00:00]} 27. Bxf4 {[%emt 0:00:14]} Bd4+ {[%emt 0:00:00]} 28. Be3 {[%emt 0:02:41]} Qh4 {[%emt 0:00:00]} 29. Bxd4 {[%emt 0:04:37]} f2+ {[%emt 0:00:00]} 30. Kg2 {[%emt 0:00:41]} Qxh1+ {[%emt 0:00:30]} 31. Kxf2 {[%emt 0:00:42]} Qf3+ {[%emt 0:00:00]} 0-1

[Event "Turkish Cup 2024"]
[Site "Denizli"]
[Date "2024.07.31"]
[Round "2"]
[White "Cavdarli, Mert Ali"]
[Black "Ilgaz, Yusuf Kerem"]
[Result "0-1"]
[ECO "A47"]
[WhiteElo "1639"]
[BlackElo "2006"]
[Annotator "RC"]
[PlyCount "80"]
[EventDate "2024.08.01"]
[EventType "swiss"]
[EventCountry "TUR"]
[SourceTitle "playchess.com"]
[Source "ChessBase"]
[SourceQuality "1"]
[TimeControl "5400+30"]

1. d4 {[%emt 0:01:00]} Nf6 {[%emt 0:02:00]} 2. Bf4 {[%emt 0:00:00]} b6 {[%emt 0:00:30]} 3. e3 {[%emt 0:00:00]} Bb7 {[%emt 0:00:30]} 4. Nf3 {[%emt 0:00:30]} Nh5 {[%emt 0:00:00]} 5. Bg5 {[%emt 0:00:30]} h6 {[%emt 0:00:00]} 6. Bh4 {[%emt 0:00:30]} g5 {[%emt 0:00:00]} 7. Bg3 {[%emt 0:00:00]} Nxg3 {[%emt 0:01:00]} 8. hxg3 {[%emt 0:00:00]} Bg7 {[%emt 0:00:30]} 9. c4 {[%emt 0:00:30]} d6 {[%emt 0:01:30]} 10. Nc3 {[%emt 0:00:30]} Nd7 {[%emt 0:01:30]} 11. d5 {[%emt 0:04:30]} e6 {[%emt 0:02:30]} 12. dxe6 {[%emt 0:02:30]} fxe6 {[%emt 0:00:30]} 13. Nd4 {[%emt 0:00:30]} Qf6 {[%emt 0:05:30]} 14. Qh5+ {[%emt 0:00:30]} Ke7 {[%emt 0:03:30]} 15. Qe2 {[%emt 0:16:30]} Rhf8 {[%emt 0:04:30]} 16. f3 {[%emt 0:00:30]} a5 {[%emt 0:09:30]} 17. O-O-O {[%emt 0:00:00]} a4 {[%emt 0:01:30]} 18. a3 {[%emt 0:00:00]} Qg6 {[%emt 0:07:30]} 19. Ndb5 {[%emt 0:03:30]} Nc5 {[%emt 0:02:30]} 20. Qc2 {[%emt 0:00:30]} Qxc2+ {[%emt 0:00:30]} 21. Kxc2 {[%emt 0:00:30]} Kd7 {[%emt 0:01:30]} 22. Bd3 {[%emt 0:02:30]} g4 {[%emt 0:02:30]} 23. f4 {[%emt 0:01:30]} Nxd3 {[%emt 0:16:30]} 24. Rxd3 {[%emt 0:02:30]} Bxg2 {[%emt 0:00:30]} 25. Rh4 {[%emt 0:00:30]} Bf1 {[%emt 0:04:30]} 26. Rd2 {[%emt 0:01:30]} Bxc4 {[%emt 0:01:30]} 27. Rxg4 {[%emt 0:00:30]} Rg8 {[%emt 0:02:30]} 28. Rh4 {[%emt 0:00:30]} Bxc3 {[%emt 0:01:30]} 29. Nxc3 {[%emt 0:00:30]} Rxg3 {[%emt 0:00:30]} 30. Rxh6 {[%emt 0:00:00]} Rxe3 {[%emt 0:00:30]} 31. Rg2 {[%emt 0:00:00]} Rf3 {[%emt 0:01:30]} 32. Rg7+ {[%emt 0:01:30]} Kc6 {[%emt 0:00:30]} 33. Rf6 {[%emt 0:00:30]} Rf2+ {[%emt 0:00:30]} 34. Kd1 {[%emt 0:00:30]} Rh8 {[%emt 0:01:30]} 35. Rg1 {[%emt 0:02:30]} Rhh2 {[%emt 0:00:30]} 36. f5 {[%emt 0:01:30]} exf5 {[%emt 0:00:00]} 37. Rf7 {[%emt 0:00:00]} Bxf7 {[%emt 0:00:00]} 38. b4 {[%emt 0:00:00]} axb3 {[%emt 0:00:30]} 39. Re1 {[%emt 0:00:30]} b2 {[%emt 0:00:00]} 40. Nb1 {[%emt 0:00:30]} Bb3# {[%emt 0:00:00]} 0-1

[Event "Turkish Cup 2024"]
[Site "Denizli"]
[Date "2024.07.31"]
[Round "2"]
[White "Ay, Sevket"]
[Black "Maruflu, Enes Yusuf"]
[Result "0-1"]
[ECO "B57"]
[WhiteElo "1534"]
[BlackElo "2228"]
[Annotator "RC"]
[PlyCount "90"]
[EventDate "2024.08.01"]
[EventType "swiss"]
[EventCountry "TUR"]
[SourceTitle "playchess.com"]
[Source "ChessBase"]
[SourceQuality "1"]
[TimeControl "5400+30"]

1. e4 {[%emt 0:01:00]} c5 {[%emt 0:05:00]} 2. Nf3 {[%emt 0:00:30]} d6 {[%emt 0:00:30]} 3. d4 {[%emt 0:00:30]} cxd4 {[%emt 0:00:30]} 4. Nxd4 {[%emt 0:00:30]} Nf6 {[%emt 0:00:30]} 5. Nc3 {[%emt 0:00:00]} Nc6 {[%emt 0:00:30]} 6. Bc4 {[%emt 0:00:00]} Bd7 {[%emt 0:00:30]} 7. Be3 {[%emt 0:00:30]} Ng4 {[%emt 0:02:30]} 8. Bg5 {[%emt 0:01:30]} Qb6 {[%emt 0:01:30]} 9. Nd5 {[%emt 0:05:30]} Qxd4 {[%emt 0:00:00]} 10. Qxd4 {[%emt 0:01:30]} Nxd4 {[%emt 0:00:00]} 11. Nc7+ {[%emt 0:00:30]} Kd8 {[%emt 0:00:30]} 12. Nxa8 {[%emt 0:00:30]} Nxc2+ {[%emt 0:00:00]} 13. Ke2 {[%emt 0:00:30]} Nxa1 {[%emt 0:00:00]} 14. Rxa1 {[%emt 0:00:30]} Kc8 {[%emt 0:07:30]} 15. Rc1 {[%emt 0:04:30]} Kb8 {[%emt 0:02:30]} 16. Bd5 {[%emt 0:01:30]} Bc6 {[%emt 0:02:30]} 17. Bxc6 {[%emt 0:03:30]} bxc6 {[%emt 0:00:30]} 18. Rxc6 {[%emt 0:00:30]} Kxa8 {[%emt 0:00:00]} 19. Rc8+ {[%emt 0:01:30]} Kb7 {[%emt 0:00:00]} 20. Rd8 {[%emt 0:00:30]} f6 {[%emt 0:00:30]} 21. Bd2 {[%emt 0:00:30]} Ne5 {[%emt 0:00:30]} 22. b4 {[%emt 0:01:30]} Nc6 {[%emt 0:01:30]} 23. Re8 {[%emt 0:00:00]} g5 {[%emt 0:00:30]} 24. b5 {[%emt 0:00:00]} Nd4+ {[%emt 0:00:30]} 25. Kd3 {[%emt 0:01:30]} Nxb5 {[%emt 0:00:00]} 26. Ba5 {[%emt 0:00:30]} Nc7 {[%emt 0:01:00]} 27. Bxc7 {[%emt 0:00:30]} Kxc7 {[%emt 0:00:00]} 28. Kc4 {[%emt 0:00:30]} Kd7 {[%emt 0:01:00]} 29. Ra8 {[%emt 0:00:30]} Bg7 {[%emt 0:00:30]} 30. Rxa7+ {[%emt 0:00:30]} Ke6 {[%emt 0:00:30]} 31. a4 {[%emt 0:00:30]} Rc8+ {[%emt 0:00:00]} 32. Kb5 {[%emt 0:00:00]} f5 {[%emt 0:00:00]} 33. exf5+ {[%emt 0:00:00]} Kf7 {[%emt 0:00:30]} 34. a5 {[%emt 0:01:30]} Rc2 {[%emt 0:00:30]} 35. a6 {[%emt 0:01:30]} Bd4 {[%emt 0:00:30]} 36. Rb7 {[%emt 0:00:30]} Rxf2 {[%emt 0:00:30]} 37. Kc4 {[%emt 0:01:30]} Bc5 {[%emt 0:00:30]} 38. g4 {[%emt 0:01:30]} Rxh2 {[%emt 0:00:00]} 39. Rb8 {[%emt 0:00:00]} Ra2 {[%emt 0:01:00]} 40. Rh8 {[%emt 0:01:00]} Rxa6 {[%emt 0:00:30]} 41. Rxh7+ {[%emt 0:00:00]} Kf8 {[%emt 0:00:00]} 42. Rh8+ {[%emt 0:01:00]} Kg7 {[%emt 0:00:00]} 43. Rh5 {[%emt 0:00:00]} Ra4+ {[%emt 0:00:30]} 44. Kd5 {[%emt 0:00:00]} Rxg4 {[%emt 0:00:30]} 45. Ke6 {[%emt 0:00:00]} Re4+ {[%emt 0:00:00]} 0-1

[Event "Turkish Cup 2024"]
[Site "Denizli"]
[Date "2024.07.31"]
[Round "3"]
[White "Maruflu, Enes Yusuf"]
[Black "Polat, Ahmet Eren"]
[Result "1-0"]
[ECO "A00"]
[WhiteElo "2228"]
[BlackElo "1814"]
[Annotator "RC"]
[PlyCount "85"]
[EventDate "2024.08.01"]
[EventType "swiss"]
[EventCountry "TUR"]
[SourceTitle "playchess.com"]
[Source "ChessBase"]
[SourceQuality "1"]
[TimeControl "5400+30"]

1. g3 e5 2. Bg2 d5 3. b3 Nf6 4. Bb2 Bd6 5. d3 c6 6. Nd2 Qe7 7. e4 O-O 8. Ne2 dxe4 9. dxe4 Ba3 10. Bxa3 Qxa3 11. Nc4 Qe7 12. Qd6 Qxd6 13. Nxd6 Na6 14. Nc3 Nc5 15. O-O b6 16. Rad1 Ba6 17. Rfe1 g6 18. f4 Ne6 19. Bf1 Bxf1 20. Rxf1 Ng4 21. Nc4 b5 22. h3 bxc4 23. hxg4 Rad8 24. fxe5 Rxd1 25. Rxd1 cxb3 26. axb3 Rd8 27. Rd6 Rxd6 28. exd6 f6 29. Kf2 Kf7 30. Ke3 Ke8 31. e5 fxe5 32. Ke4 Kd7 33. Kxe5 Ng5 34. Kf6 Nf3 35. Ne4 Nd4 36. Kg7 Nxc2 37. Kxh7 g5 38. Kg6 Nd4 39. b4 Nc2 40. Kxg5 Nxb4 41. Kf5 Nd5 42. Ke5 Ne3 43. Nc5+ 1-0

[Event "Turkish Cup 2024"]
[Site "Denizli"]
[Date "2024.07.31"]
[Round "3"]
[White "Ozdemir, Serhan Berat"]
[Black "Tektas, Onur Efe"]
[Result "1/2-1/2"]
[ECO "C07"]
[WhiteElo "2194"]
[BlackElo "1851"]
[Annotator "RC"]
[PlyCount "116"]
[EventDate "2024.08.01"]
[EventType "swiss"]
[EventCountry "TUR"]
[SourceTitle "playchess.com"]
[Source "ChessBase"]
[SourceQuality "1"]
[TimeControl "5400+30"]

1. e4 {[%emt 0:06:00]} e6 {[%emt 0:01:00]} 2. d4 {[%emt 0:00:30]} d5 {[%emt 0:00:30]} 3. Nd2 {[%emt 0:00:30]} c5 {[%emt 0:00:00]} 4. exd5 {[%emt 0:00:00]} Qxd5 {[%emt 0:00:00]} 5. Ngf3 {[%emt 0:00:00]} cxd4 {[%emt 0:01:30]} 6. Bc4 {[%emt 0:00:30]} Qd8 {[%emt 0:00:30]} 7. Nb3 {[%emt 0:00:00]} Nf6 {[%emt 0:01:30]} 8. O-O {[%emt 0:01:00]} Be7 {[%emt 0:01:30]} 9. Nbxd4 {[%emt 0:00:00]} O-O {[%emt 0:01:30]} 10. Re1 {[%emt 0:01:00]} Qc7 {[%emt 0:07:30]} 11. Bb3 {[%emt 0:00:30]} Nc6 {[%emt 0:03:30]} 12. c3 {[%emt 0:01:30]} Rd8 {[%emt 0:04:30]} 13. Qe2 {[%emt 0:04:30]} Nxd4 {[%emt 0:04:30]} 14. Nxd4 {[%emt 0:00:30]} Bc5 {[%emt 0:03:30]} 15. Be3 {[%emt 0:04:30]} b6 {[%emt 0:04:30]} 16. Rad1 {[%emt 0:06:30]} Bb7 {[%emt 0:01:30]} 17. Bg5 {[%emt 0:00:00]} Bxd4 {[%emt 0:12:30]} 18. cxd4 {[%emt 0:00:00]} Qc6 {[%emt 0:00:30]} 19. f3 {[%emt 0:01:30]} Qd6 {[%emt 0:04:30]} 20. Qf2 {[%emt 0:02:30]} h6 {[%emt 0:04:30]} 21. Bxf6 {[%emt 0:01:30]} gxf6 {[%emt 0:00:30]} 22. Qh4 {[%emt 0:00:30]} Kg7 {[%emt 0:01:30]} 23. Re3 {[%emt 0:04:30]} Rg8 {[%emt 0:04:30]} 24. d5 {[%emt 0:09:30]} Qc5 {[%emt 0:01:30]} 25. Rd4 {[%emt 0:02:30]} Bxd5 {[%emt 0:09:30]} 26. Rc3 {[%emt 0:02:30]} Qf8 {[%emt 0:07:42]} 27. Bxd5 {[%emt 0:12:30]} exd5 {[%emt 0:01:28]} 28. Rc7 {[%emt 0:01:30]} Rc8 {[%emt 0:02:27]} 29. Qg4+ {[%emt 0:12:30]} Kh8 {[%emt 0:00:27]} 30. Qd7 {[%emt 0:01:30]} Rxc7 {[%emt 0:01:24]} 31. Qxc7 {[%emt 0:00:00]} Qe8 {[%emt 0:04:54]} 32. Qc1 {[%emt 0:00:00]} Rg6 {[%emt 0:00:32]} 33. Qd2 {[%emt 0:00:30]} Qc6 {[%emt 0:01:47]} 34. Rxd5 {[%emt 0:00:30]} Kg7 {[%emt 0:00:10]} 35. b3 {[%emt 0:01:30]} Rg5 {[%emt 0:00:31]} 36. Rd4 {[%emt 0:00:30]} Qc5 {[%emt 0:01:52]} 37. b4 {[%emt 0:00:30]} Qf5 {[%emt 0:00:00]} 38. h4 {[%emt 0:00:30]} Rg6 {[%emt 0:00:30]} 39. Qd3 {[%emt 0:05:30]} Qe5 {[%emt 0:01:42]} 40. Qd2 {[%emt 0:01:04]} Qg3 {[%emt 0:01:10]} 41. Qf2 {[%emt 0:00:01]} Qxf2+ {[%emt 0:01:27]} 42. Kxf2 {[%emt 0:00:25]} f5 {[%emt 0:00:00]} 43. Rd7 {[%emt 0:00:58]} a6 {[%emt 0:00:10]} 44. a4 {[%emt 0:08:58]} Rc6 {[%emt 0:02:00]} 45. Ra7 {[%emt 0:00:04]} Rc4 {[%emt 0:00:18]} 46. Rxa6 {[%emt 0:00:08]} Rxb4 {[%emt 0:00:00]} 47. h5 {[%emt 0:00:00]} f4 {[%emt 0:00:21]} 48. Kg1 {[%emt 0:00:06]} b5 {[%emt 0:01:59]} 49. Rb6 {[%emt 0:01:28]} Rxa4 {[%emt 0:00:06]} 50. Rxb5 {[%emt 0:00:00]} Kf6 {[%emt 0:00:44]} 51. Kh2 {[%emt 0:00:00]} Ra8 {[%emt 0:00:28]} 52. g4 {[%emt 0:01:26]} fxg3+ {[%emt 0:00:56]} 53. Kxg3 {[%emt 0:00:04]} Rg8+ {[%emt 0:00:19]} 54. Kf4 {[%emt 0:00:01]} Rg1 {[%emt 0:00:21]} 55. Rb6+ {[%emt 0:00:30]} Kg7 {[%emt 0:00:00]} 56. Rb5 {[%emt 0:00:00]} Rg2 {[%emt 0:00:29]} 57. Rf5 {[%emt 0:00:00]} Re2 {[%emt 0:00:00]} 58. Re5 {[%emt 0:00:28]} Rg2 {[%emt 0:00:06]} 1/2-1/2